bitfinex-derivatives/quotes_BTCF0:USTF0_20230901
["timestamp","ask_amount","ask_price","bid_price","bid_amount"]
[1693564710197,0.45334661,26034.0,26033.0,0.8810229]
[1693564710398,0.45334661,26034.0,26033.0,0.82633383]
[1693564710803,0.43334661,26034.0,26033.0,0.8810229]
[1693564711305,0.43436661,26034.0,26033.0,0.8810229]
[1693564711504,0.41436661,26034.0,26033.0,0.82633383]
[1693564711707,0.41436661,26034.0,26033.0,0.67343193]
[1693564712009,0.3206762,26035.0,26034.0,0.00384]
[1693564712010,0.0005762,26035.0,26034.0,0.00384]
[1693564712207,0.3112,26044.0,26041.0,0.00384]
[1693564712513,0.01898,26043.0,26042.0,0.07642181]
[1693564712708,0.43428,26043.0,26042.0,0.07642181]
[1693564712913,0.45428,26043.0,26042.0,0.07640217]
[1693564713107,0.45428,26043.0,26042.0,0.11460326]
[1693564714013,0.48328,26043.0,26042.0,0.11760326]
[1693564714810,0.40641204,26043.0,26042.0,0.11760326]
[1693564715417,0.43441204,26043.0,26042.0,0.12060326]
[1693564717417,0.43441204,26043.0,26042.0,0.08232632]
[1693564718620,0.73141204,26043.0,26042.0,0.04286862]
[1693564718817,0.73141204,26043.0,26040.0,0.09834806]
[1693564719125,0.8306,26041.0,26040.0,0.00057598]
[1693564719327,0.85907053,26041.0,26036.0,0.15280435]
[1693564719617,0.4153,26037.0,26036.0,0.15280435]
[1693564719823,0.4353,26037.0,26036.0,0.15280435]
[1693564720025,0.4353,26037.0,26036.0,0.40708041]
[1693564721317,0.4353,26037.0,26036.0,0.25427606]
[1693564721720,0.4363,26037.0,26036.0,0.16068543]
[1693564721920,0.4373,26037.0,26036.0,0.42496149]
[1693564722416,0.4533,26037.0,26036.0,0.01]
[1693564722819,0.4713,26037.0,26036.0,0.004]
[1693564723319,0.4713,26037.0,26035.0,0.15441403]
[1693564723320,0.4713,26037.0,26035.0,0.0017286]
[1693564723520,0.4153,26036.0,26035.0,0.0017286]
[1693564723720,0.4353,26036.0,26035.0,0.0017286]
[1693564724626,0.33919068,26036.0,26035.0,0.0017286]
[1693564724825,0.25008136,26036.0,26035.0,0.0027286]
[1693564725019,0.25008136,26036.0,26035.0,0.0037286]
[1693564725524,0.25408136,26036.0,26035.0,0.0037286]
[1693564731419,0.0152514,26035.0,26034.0,0.15337594]
[1693564731628,0.0152514,26035.0,26031.0,0.19099978]
[1693564731629,0.3,26033.0,26031.0,0.19099978]
[1693564731830,0.4153,26032.0,26031.0,0.19099978]
[1693564732028,0.4153,26032.0,26031.0,0.17675838]
[1693564732330,0.4153,26032.0,26031.0,0.25432968]
[1693564732630,0.4153,26032.0,26029.0,0.25432968]
[1693564732832,0.4592,26033.0,26030.0,0.25331968]
[1693564733128,0.4153,26031.0,26028.0,0.41914]
[1693564733330,0.4153,26029.0,26028.0,0.43914]
[1693564733527,0.4153,26029.0,26028.0,1.5464525]
[1693564734724,0.33840324,26029.0,26028.0,1.5264525]
[1693564735216,0.33840324,26029.0,26028.0,0.41914]
[1693564735422,0.34340324,26029.0,26028.0,0.42014]
[1693564736523,0.37340324,26029.0,26028.0,0.42314]
[1693564736927,0.4503,26029.0,26028.0,1.11518353]
[1693564737526,0.4503,26029.0,26028.0,0.00784]
[1693564738032,0.4773,26029.0,26028.0,0.00984]
[1693564738328,0.01298,26028.0,26026.0,0.41914]
[1693564738528,0.062,26029.0,26027.0,1.09441027]
[1693564738727,0.568,26028.0,26027.0,1.09441027]
[1693564739627,0.51032272,26028.0,26027.0,1.09441027]
[1693564739828,0.52932272,26028.0,26027.0,1.09441027]
[1693564740030,0.52932272,26028.0,26026.0,0.00584]
[1693564740234,0.4153,26027.0,26026.0,0.00584]
[1693564740523,0.4153,26027.0,26026.0,0.002]
[1693564740729,0.7153,26027.0,26026.0,0.002]
[1693564741230,0.007,26026.0,26025.0,0.00384]
[1693564741427,0.00316,26025.0,26024.0,0.4153]
[1693564741635,0.40582,26025.0,26024.0,0.43214]
[1693564742726,0.40682,26025.0,26024.0,0.44214]
[1693564743531,0.40682,26025.0,26024.0,1.5496011]
[1693564744629,0.4173,26025.0,26024.0,1.1454611]
[1693564746429,0.4173,26025.0,26024.0,1.1293011]
[1693564746630,0.4173,26025.0,26024.0,1.1493011]
[1693564746930,0.4173,26025.0,26024.0,1.1293011]
[1693564749535,0.4173,26025.0,26024.0,0.02184]
[1693564749724,0.4173,26025.0,26024.0,0.00286]
[1693564754943,0.3211615,26025.0,26024.0,0.00286]
[1693564756046,0.3411615,26025.0,26023.0,0.15556]
[1693564756249,0.4153,26024.0,26023.0,0.15556]
[1693564757145,0.4153,26024.0,26023.0,0.17456]
[1693564757735,0.7153,26024.0,26023.0,0.1717]
[1693564758048,0.7353,26024.0,26022.0,0.00057638]
[1693564758245,0.5655,26023.0,26022.0,0.00057638]
[1693564758432,0.5855,26023.0,26022.0,0.00057638]
[1693564759739,0.6215,26023.0,26022.0,0.00357638]
[1693564760143,0.6215,26023.0,26022.0,0.02657638]
[1693564760847,1.8215,26023.0,26022.0,0.00357638]
[1693564761145,0.01541362,26022.0,26021.0,0.157]
[1693564761342,0.4153,26022.0,26021.0,0.14158638]
[1693564762850,0.4513,26022.0,26021.0,0.14158638]
[1693564763848,0.4873,26022.0,26021.0,0.14358638]
[1693564766244,0.41037746,26022.0,26021.0,0.14358638]
[1693564767753,0.41037746,26022.0,26021.0,0.29652513]
[1693564768654,0.41037746,26022.0,26021.0,0.55094236]
[1693564774653,0.41037746,26022.0,26021.0,0.55122555]
[1693564775544,0.41037746,26022.0,26021.0,0.55408555]
[1693564776356,0.46707122,26022.0,26021.0,0.55408555]
[1693564777747,0.46707122,26022.0,26021.0,0.14644638]
[1693564778753,0.46707122,26022.0,26021.0,0.00486]
[1693564778960,0.00384,26020.0,26018.0,0.29962359]
[1693564779155,0.00384,26020.0,26016.0,0.19125427]
[1693564779156,0.01698001,26018.0,26016.0,0.1916711]
[1693564779457,0.4153,26017.0,26016.0,0.42913043]
[1693564779846,0.4153,26017.0,26016.0,0.25443934]
[1693564781052,0.4163,26017.0,26016.0,0.26043934]
[1693564782363,0.4183,26017.0,26016.0,0.42693934]
[1693564784654,0.36060408,26017.0,26016.0,0.42693934]
[1693564786362,0.36060408,26017.0,26016.0,0.58035168]
[1693564788762,0.36060408,26017.0,26016.0,0.42693934]
[1693564789265,0.36060408,26017.0,26016.0,0.66733994]
[1693564789557,0.36060408,26017.0,26016.0,0.82076155]
[1693564792563,0.36060408,26017.0,26016.0,0.4129006]
[1693564793663,0.36060408,26017.0,26016.0,0.52800124]
[1693564794867,0.36060408,26017.0,26016.0,0.4129006]
[1693564795461,0.37360408,26017.0,26016.0,0.52800124]
[1693564795864,0.37360408,26017.0,26016.0,0.4129006]
[1693564796368,0.37360408,26017.0,26016.0,0.28760064]
[1693564796667,0.38060408,26017.0,26016.0,0.1675]
[1693564797254,0.37260408,26017.0,26016.0,0.1665]
[1693564797462,0.39360408,26017.0,26016.0,0.1685]
[1693564797963,0.37860408,26017.0,26016.0,0.1685]
[1693564798163,0.39360408,26017.0,26016.0,0.1685]
[1693564798554,0.37860408,26017.0,26016.0,0.1685]
[1693564798757,0.41460408,26017.0,26016.0,0.1685]
[1693564799358,0.42960408,26017.0,26016.0,0.1685]
[1693564809371,0.42960408,26017.0,26016.0,0.40890973]
[1693564811781,0.42960408,26017.0,26016.0,0.1685]
[1693564812584,0.42960408,26017.0,26013.0,0.11510064]
[1693564812781,0.4153,26014.0,26013.0,0.11510064]
[1693564812977,0.4153,26014.0,26013.0,0.35551546]
[1693564813587,0.4153,26014.0,26013.0,0.35751546]
[1693564815185,0.4243,26014.0,26013.0,0.37751546]
[1693564815384,0.4253,26014.0,26013.0,0.37751546]
[1693564818687,0.4253,26014.0,26013.0,0.35751546]
[1693564818877,0.4253,26014.0,26013.0,0.002]
[1693564820391,0.4253,26014.0,26013.0,0.35752563]
[1693564820688,0.4253,26014.0,26013.0,0.11710064]
[1693564821386,0.4253,26014.0,26013.0,0.3575253]
[1693564821582,0.4253,26014.0,26013.0,0.24242466]
[1693564821786,0.4253,26014.0,26013.0,0.002]
[1693564822287,0.4253,26014.0,26013.0,0.11710064]
[1693564825591,0.45670734,26014.0,26013.0,0.11710064]
[1693564826291,0.45670734,26014.0,26013.0,0.3575268]
[1693564838294,0.51490324,26014.0,26013.0,0.3575268]
[1693564841403,0.51874324,26014.0,26013.0,0.3575268]
[1693564843606,0.00384,26013.0,26011.0,0.31722161]
[1693564843800,0.4153,26012.0,26011.0,0.15342161]
[1693564843994,0.4153,26012.0,26011.0,0.39386015]
[1693564844897,0.4153,26012.0,26011.0,0.40986015]
[1693564845301,0.4353,26012.0,26011.0,0.25643854]
[1693564845504,1.6353,26012.0,26011.0,0.25643854]
[1693564845693,1.6373,26012.0,26011.0,0.09287594]
[1693564846102,1.6373,26012.0,26011.0,0.016]
[1693564847401,1.6353,26012.0,26010.0,0.07687594]
[1693564847607,1.223,26012.0,26011.0,0.015]
[1693564847805,1.6383,26012.0,26011.0,0.015]
[1693564848206,1.6353,26012.0,26010.0,0.07687594]
[1693564848406,1.255,26012.0,26011.0,0.002]
[1693564848703,1.6703,26012.0,26011.0,0.002]
[1693564849103,1.823,26012.0,26011.0,0.002]
[1693564849415,0.01698,26011.0,26010.0,0.07687594]
[1693564849699,0.4353,26011.0,26010.0,0.30035219]
[1693564851199,0.4713,26011.0,26010.0,0.30035219]
[1693564854804,0.4513,26011.0,26010.0,0.30035219]
[1693564855108,0.4513,26011.0,26010.0,0.29700464]
[1693564855506,0.4513,26011.0,26010.0,0.29514533]
[1693564856711,0.4513,26011.0,26010.0,0.05468907]
[1693564857004,0.4513,26011.0,26008.0,0.56872161]
[1693564857313,0.4153,26009.0,26008.0,0.58872161]
[1693564857497,0.35759441,26009.0,26008.0,1.1948808]
[1693564858506,0.39059441,26009.0,26008.0,1.1948808]
[1693564859101,0.37659441,26009.0,26008.0,1.1948808]
[1693564862914,0.37659441,26009.0,26008.0,0.24044002]
[1693564864409,0.37659441,26009.0,26008.0,0.64835291]
[1693564867616,0.37659441,26009.0,26008.0,0.4949313]
[1693564868317,0.37659441,26009.0,26008.0,0.64852646]
[1693564869226,0.37659441,26009.0,26008.0,0.4949313]
[1693564870621,0.37659441,26009.0,26008.0,0.64853053]
[1693564871319,0.37659441,26009.0,26008.0,0.24044002]
[1693564878221,0.38043441,26009.0,26008.0,0.24044002]
[1693564879427,0.38043441,26009.0,26008.0,0.39403925]
[1693564879626,0.38043441,26009.0,26008.0,0.64853082]
[1693564883421,0.38043441,26009.0,26008.0,0.49493159]
[1693564884423,0.38043441,26009.0,26008.0,0.60616904]
[1693564886319,0.38043441,26009.0,26008.0,0.75988036]
[1693564887720,0.38043441,26009.0,26008.0,0.64864291]
[1693564887925,0.38043441,26009.0,26008.0,0.75988036]
[1693564888131,0.38043441,26009.0,26008.0,0.70519129]
[1693564888324,0.38043441,26009.0,26008.0,0.75988036]
[1693564889534,0.38043441,26009.0,26008.0,0.60616904]
[1693564889735,0.38043441,26009.0,26008.0,0.49493159]
[1693564894941,0.38043441,26009.0,26008.0,0.49493159]
[1693564897828,0.38043441,26009.0,26008.0,0.54962066]
[1693564898028,0.38043441,26009.0,26008.0,0.55147997]
[1693564898538,0.38043441,26009.0,26008.0,0.70530665]
[1693564898936,0.38043441,26009.0,26008.0,0.75999572]
[1693564899129,0.38043441,26009.0,26008.0,0.70530665]
[1693564899443,0.38043441,26009.0,26008.0,0.64875827]
[1693564901233,0.38043441,26009.0,26008.0,0.70344734]
[1693564901542,0.38043441,26009.0,26008.0,0.64875827]
[1693564903235,0.38043441,26009.0,26008.0,0.70344734]
[1693564903936,0.38043441,26009.0,26008.0,0.75999572]
[1693564904630,0.38043441,26009.0,26008.0,0.64875827]
[1693564906436,0.38043441,26009.0,26008.0,0.70530665]
[1693564906744,0.38043441,26009.0,26008.0,0.70531144]
[1693564907243,0.38043441,26009.0,26008.0,0.45081508]
[1693564907835,0.38043441,26009.0,26008.0,0.2969884]
[1693564908440,0.38043441,26009.0,26008.0,0.24044002]
[1693564911948,0.39543441,26009.0,26008.0,0.24044002]
[1693564914048,0.39543441,26009.0,26008.0,0.2969884]
[1693564914247,0.39543441,26009.0,26008.0,0.35167747]
[1693564914742,0.39543441,26009.0,26008.0,0.2969884]
[1693564914943,0.39543441,26009.0,26008.0,0.35167747]
[1693564915443,0.39543441,26009.0,26008.0,0.2969884]
[1693564916543,0.39543441,26009.0,26008.0,0.45081508]
[1693564920152,0.39543441,26009.0,26008.0,0.35167747]
[1693564920951,0.39543441,26009.0,26008.0,0.2969884]
[1693564925453,0.39543441,26009.0,26008.0,0.35167747]
[1693564926346,0.39543441,26009.0,26008.0,0.2969884]
[1693564927651,0.39543441,26009.0,26008.0,0.35167747]
[1693564928451,0.39543441,26009.0,26008.0,0.2969884]
[1693564929155,0.39543441,26009.0,26008.0,0.35167747]
[1693564929950,0.39543441,26009.0,26008.0,0.24044002]
[1693564930152,0.39543441,26009.0,26008.0,0.2969884]
[1693564931853,0.39543441,26009.0,26008.0,0.35167747]
[1693564932454,0.39543441,26009.0,26008.0,0.2969884]
[1693564932849,0.39543441,26009.0,26008.0,0.35167747]
[1693564933051,0.39543441,26009.0,26008.0,0.2969884]
[1693564933357,0.39543441,26009.0,26008.0,0.24044002]
[1693564939556,0.39543441,26009.0,26008.0,0.3942667]
[1693564940173,0.41543441,26009.0,26008.0,0.35581146]
[1693564940470,0.41543441,26009.0,26008.0,0.01044002]
[1693564943970,0.39543441,26009.0,26008.0,0.01044002]
[1693564944165,0.41543441,26009.0,26008.0,0.01044002]
[1693564944767,0.41543441,26009.0,26007.0,0.01044002]
[1693564944970,0.4153,26008.0,26006.0,0.11537144]
[1693564945165,0.03784,26009.0,26007.0,0.24048056]
[1693564945371,0.4153,26008.0,26007.0,0.24048056]
[1693564946669,0.4173,26008.0,26006.0,0.11537144]
[1693564946868,0.4153,26007.0,26006.0,0.11537144]
[1693564948374,0.4173,26007.0,26006.0,0.11537144]
[1693564948872,0.4173,26007.0,26005.0,0.11537144]
[1693564949075,0.4153,26006.0,26005.0,0.11537144]
[1693564949276,0.4153,26006.0,26005.0,0.3558526]
[1693564950772,0.4223,26006.0,26005.0,0.3558526]
[1693564951469,0.4223,26006.0,26005.0,0.11537144]
[1693564953669,0.4223,26006.0,26005.0,0.35585653]
[1693564953877,0.4223,26006.0,26005.0,0.24048509]
[1693564956965,0.4223,26006.0,26004.0,0.24048509]
[1693564957174,0.4153,26005.0,26004.0,0.24048509]
[1693564958372,0.4153,26002.0,26001.0,0.15382668]
[1693564958571,0.8306,26002.0,26001.0,0.2605005]
[1693564958772,0.8306,26002.0,26001.0,0.02]
[1693564959768,0.8346,26002.0,26001.0,0.02]
[1693564960173,0.8346,26002.0,26001.0,0.00102]
[1693564960373,0.8646,26002.0,26000.0,0.1608]
[1693564960570,0.5708,26001.0,26000.0,0.1808]
[1693564963284,0.5898,26001.0,26000.0,0.1808]
[1693564963477,0.6048,26001.0,26000.0,0.1808]
[1693564963784,0.6048,26001.0,26000.0,0.16181]
[1693564965387,0.5898,26001.0,26000.0,0.16181]
[1693564965582,0.5858,26001.0,26000.0,0.16181]
[1693564965785,0.6048,26001.0,26000.0,0.16181]
[1693564966884,0.54707788,26001.0,26000.0,0.21835838]
[1693564967489,0.54707788,26001.0,26000.0,0.14181]
[1693564971092,0.54707788,26001.0,26000.0,0.19835838]
[1693564972685,0.5772438,26001.0,26000.0,0.19835838]
[1693564973802,0.5962238,26001.0,26000.0,0.19835838]
[1693564974199,0.5772438,26001.0,26000.0,0.19835838]
[1693564974402,0.5772438,26001.0,26000.0,0.14181]
[1693564974896,0.5962238,26001.0,26000.0,0.14181]
[1693564975297,0.5772438,26001.0,26000.0,0.14181]
[1693564976100,0.5962238,26001.0,26000.0,0.14181]
[1693564978795,0.5962238,26001.0,26000.0,0.29563668]
[1693564979101,0.5772438,26001.0,26000.0,0.14181]
[1693564979303,0.5962238,26001.0,26000.0,0.29563668]
[1693564979504,0.5962238,26001.0,26000.0,0.25304745]
[1693564979699,0.5962238,26001.0,26000.0,0.19835838]
[1693564979998,0.5962238,26001.0,26000.0,0.35218506]
[1693564980199,0.5962238,26001.0,26000.0,0.29563668]
[1693564982004,0.5962238,26001.0,26000.0,0.55019247]
[1693564982394,0.5962238,26001.0,26000.0,0.60674085]
[1693564982907,0.5962238,26001.0,26000.0,0.55019247]
[1693564983699,0.5962238,26001.0,26000.0,0.29563668]
[1693564983906,0.5962238,26001.0,26000.0,0.55019496]
[1693564985005,0.5772438,26001.0,26000.0,0.55019496]
[1693564985205,0.5962238,26001.0,26000.0,0.55019496]
[1693564988502,0.5962238,26001.0,26000.0,0.60674334]
[1693564989308,0.5962238,26001.0,26000.0,0.55019496]
[1693564993309,0.5962238,26001.0,26000.0,0.40838496]
[1693564994213,0.5962238,26001.0,26000.0,0.15382668]
[1693564996213,0.5962238,26001.0,26000.0,0.40826615]
[1693564996420,0.5962238,26001.0,26000.0,0.15370587]
[1693564997904,0.5962238,26001.0,25999.0,0.15370587]
[1693564998106,0.4153,26000.0,25999.0,0.40826627]
[1693564998511,0.43428,26000.0,25999.0,0.40826627]
[1693564999408,0.4153,26000.0,25999.0,0.40826627]
[1693564999615,0.43428,26000.0,25999.0,0.40826627]
[1693564999813,0.43428,26000.0,25999.0,0.2545604]
[1693565000408,0.44028,26000.0,25999.0,0.31110878]
[1693565001215,0.44128,26000.0,25999.0,0.31110878]
[1693565002816,0.44128,26000.0,25999.0,0.50324112]
[1693565003120,0.44128,26000.0,25999.0,0.44669274]
[1693565005925,0.826042,26000.0,25999.0,1.21624874]
[1693565009221,0.826042,26000.0,25999.0,1.32748619]
[1693565009420,0.826042,26000.0,25999.0,1.27279712]
[1693565010413,0.410742,26000.0,25999.0,1.27279712]
[1693565010617,0.826042,26000.0,25999.0,1.32748619]
[1693565011121,0.826042,26000.0,25999.0,1.27279712]
[1693565011326,0.826042,26000.0,25999.0,1.32748619]
[1693565011624,0.826042,26000.0,25999.0,1.21624874]
[1693565014028,0.826042,26000.0,25999.0,1.0241164]
[1693565014327,0.826042,26000.0,25999.0,1.13535385]
[1693565014925,0.826042,26000.0,25999.0,1.08066478]
[1693565015725,0.826042,26000.0,25999.0,1.13535385]
[1693565015930,0.826042,26000.0,25999.0,1.08066478]
[1693565017736,0.826042,26000.0,25999.0,1.23454061]
[1693565021135,0.826042,26000.0,25999.0,1.17799223]
[1693565025743,1.018423,26000.0,25999.0,1.17799223]
[1693565026545,1.018423,26000.0,25999.0,0.98560323]
[1693565037260,1.018423,26000.0,25999.0,0.577167]
[1693565044370,1.018423,26000.0,25999.0,0.73104283]
[1693565046974,0.999443,26000.0,25999.0,0.73104283]
[1693565050373,0.999443,26000.0,25999.0,0.577167]
[1693565050771,0.999443,26000.0,25999.0,0.9856234]
[1693565051276,0.999443,26000.0,25999.0,0.577167]
[1693565052173,1.018423,26000.0,25999.0,0.577167]
[1693565055874,1.018423,26000.0,25999.0,0.384778]
[1693565059979,1.018423,26000.0,25999.0,0.50018557]
[1693565061580,1.018423,26000.0,25999.0,0.46171847]
[1693565063681,1.018423,26000.0,25999.0,0.46170799]
[1693565066584,1.018423,26000.0,25999.0,0.26931899]
[1693565066788,1.018423,26000.0,25999.0,0.30778399]
[1693565068791,1.032423,26000.0,25999.0,0.30778399]
[1693565069191,1.045423,26000.0,25999.0,0.30778399]
[1693565073892,1.045423,26000.0,25999.0,0.26930676]
[1693565081993,1.045423,26000.0,25999.0,0.30778399]
[1693565083903,1.10347968,26000.0,25999.0,0.30778399]
[1693565092802,1.10347968,26000.0,25999.0,0.11539499]
[1693565093007,1.31586068,26000.0,25999.0,0.11539499]
[1693565093212,1.31586068,26000.0,25998.0,0.40398699]
[1693565093414,1.31586068,26000.0,25997.0,0.29816099]
[1693565093415,0.5762,25999.0,25997.0,0.29816099]
[1693565093606,0.613789,25999.0,25998.0,0.288591]
[1693565093806,1.048069,25999.0,25998.0,0.144297]
[1693565094907,1.049069,25999.0,25998.0,0.144297]
[1693565095513,1.051069,25999.0,25998.0,0.144297]
[1693565096117,1.049069,25999.0,25998.0,0.144297]
[1693565096315,1.055069,25999.0,25998.0,0.144297]
[1693565096817,1.055069,25999.0,25997.0,0.44246199]
[1693565097017,0.4153,25998.0,25997.0,0.288602]
[1693565097317,0.703894,25998.0,25997.0,0.288602]
[1693565097508,0.742874,25998.0,25997.0,0.288602]
[1693565097711,0.742874,25998.0,25997.0,0.44246199]
[1693565097910,0.742874,25998.0,25997.0,0.288602]
[1693565098213,0.742874,25998.0,25997.0,0.44246199]
[1693565099016,0.744874,25998.0,25997.0,0.44246199]
[1693565099419,0.746874,25998.0,25997.0,0.44246199]
[1693565099917,0.726874,25998.0,25997.0,0.44246199]
[1693565100617,0.726874,25998.0,25997.0,0.69705759]
[1693565101414,0.726874,25998.0,25997.0,0.89790797]
[1693565103014,0.726874,25998.0,25997.0,0.84135959]
[1693565105318,0.726874,25998.0,25997.0,0.95259704]
[1693565105821,0.707894,25998.0,25997.0,0.95259704]
[1693565106517,0.871294,25998.0,25997.0,0.95259704]
[1693565106717,0.890274,25998.0,25997.0,0.95259704]
[1693565106914,0.5827,25998.0,25997.0,0.94303905]
[1693565107220,0.4193,25998.0,25997.0,0.94303905]
[1693565110117,0.4193,25998.0,25997.0,1.13536403]
[1693565110622,0.4497252,25998.0,25997.0,1.13536403]
[1693565110924,0.4687052,25998.0,25997.0,1.13536403]
[1693565111119,0.4497252,25998.0,25997.0,1.13536403]
[1693565112223,0.39199721,25998.0,25997.0,0.94303905]
[1693565113116,0.41097721,25998.0,25997.0,0.94303905]
[1693565113315,0.39199721,25998.0,25997.0,0.94303905]
[1693565114217,0.41097721,25998.0,25997.0,0.94303905]
[1693565116027,0.39199721,25998.0,25997.0,0.94303905]
[1693565116426,0.41097721,25998.0,25997.0,0.94303905]
[1693565116626,0.39199721,25998.0,25997.0,0.94303905]
[1693565117321,0.41097721,25998.0,25997.0,0.94303905]
[1693565117925,0.39199721,25998.0,25997.0,0.94303905]
[1693565118726,0.41097721,25998.0,25997.0,0.94303905]
[1693565120018,0.39199721,25998.0,25997.0,1.09690778]
[1693565120219,0.41097721,25998.0,25997.0,1.09690778]
[1693565122024,0.39199721,25998.0,25997.0,1.09690778]
[1693565127129,0.41097721,25998.0,25997.0,1.09690778]
[1693565127427,0.39199721,25998.0,25997.0,1.13537672]
[1693565128128,0.41097721,25998.0,25997.0,1.13537672]
[1693565128825,0.70706921,25998.0,25997.0,1.07882834]
[1693565129620,0.70706921,25998.0,25997.0,0.88649067]
[1693565130129,0.85136121,25998.0,25997.0,0.88649067]
[1693565130727,0.85136121,25998.0,25997.0,0.94303905]
[1693565131731,0.85136121,25998.0,25997.0,0.88649067]
[1693565132530,0.83238121,25998.0,25997.0,0.88649067]
[1693565132730,0.85136121,25998.0,25997.0,0.94303905]
[1693565133031,0.83238121,25998.0,25997.0,0.94303905]
[1693565133232,0.83623121,25998.0,25997.0,0.94303905]
[1693565133531,0.85521121,25998.0,25997.0,0.94303905]
[1693565134333,0.85521121,25998.0,25997.0,0.84231284]
[1693565136322,0.99565321,25998.0,25996.0,0.59617339]
[1693565136520,0.4153,25997.0,25996.0,0.44247339]
[1693565136720,0.848194,25997.0,25996.0,0.69707141]
[1693565136926,0.867174,25997.0,25996.0,0.69707141]
[1693565139431,0.870174,25997.0,25996.0,0.69707141]
[1693565141133,0.870174,25997.0,25996.0,0.55276841]
[1693565141536,0.874174,25997.0,25996.0,0.55276841]
[1693565142940,1.018472,25997.0,25996.0,0.40846741]
[1693565143245,1.038472,25997.0,25994.0,0.44249239]
[1693565143437,0.1649,25996.0,25994.0,0.44249239]
[1693565143637,0.432927,25995.0,25994.0,0.44249239]
[1693565143942,0.432927,25995.0,25994.0,0.69711435]
[1693565144137,0.432927,25995.0,25994.0,0.55280135]
[1693565144335,0.451907,25995.0,25994.0,0.40849135]
[1693565144534,0.451907,25995.0,25994.0,0.55280535]
[1693565144940,0.455907,25995.0,25994.0,0.55280535]
[1693565145439,0.455907,25995.0,25994.0,0.29818339]
[1693565146446,0.459907,25995.0,25994.0,0.144314]
[1693565147847,0.604216,25995.0,25994.0,0.144314]
[1693565148348,1.263542,25994.0,25993.0,0.44250639]
[1693565148532,1.446522,25994.0,25993.0,0.44250639]
[1693565148737,1.427542,25994.0,25993.0,0.69712902]
[1693565149638,1.450522,25994.0,25993.0,0.69712902]
[1693565150243,1.454522,25994.0,25993.0,0.69712902]
[1693565151347,1.454522,25994.0,25993.0,0.44250639]
[1693565151745,1.454522,25994.0,25993.0,0.69713393]
[1693565152443,1.454522,25994.0,25993.0,0.44250639]
[1693565153347,1.454522,25994.0,25993.0,0.288637]
[1693565153840,1.454522,25994.0,25993.0,0.44250639]
[1693565154344,1.454522,25994.0,25993.0,0.48950538]
[1693565154550,1.039222,25994.0,25993.0,0.48950538]
[1693565155048,1.039222,25994.0,25993.0,0.54419445]
[1693565155247,1.039222,25994.0,25993.0,0.48950538]
[1693565155638,1.039222,25994.0,25993.0,0.432957]
[1693565155844,1.039222,25994.0,25993.0,0.84144623]
[1693565156047,0.894908,25994.0,25993.0,0.84144623]
[1693565156350,0.92509816,25994.0,25993.0,0.84144623]
[1693565156550,0.92509816,25994.0,25993.0,0.95268368]
[1693565157246,0.86736188,25994.0,25993.0,0.95268368]
[1693565158548,0.63647016,25994.0,25993.0,1.09700368]
[1693565159242,0.4233,25994.0,25993.0,1.09700368]
[1693565159450,0.44228,25994.0,25993.0,1.09700368]
[1693565162855,0.4233,25994.0,25993.0,1.09700368]
[1693565163155,0.44228,25994.0,25993.0,1.09700368]
[1693565163449,0.4233,25994.0,25993.0,0.94313429]
[1693565163655,0.44228,25994.0,25993.0,0.94313429]
[1693565165057,0.4233,25994.0,25993.0,0.94313429]
[1693565165752,0.44228,25994.0,25993.0,0.94313429]
[1693565171655,0.44228,25994.0,25993.0,1.13547196]
[1693565178155,0.59888,25994.0,25993.0,1.13547196]
[1693565185883,0.743186,25994.0,25993.0,1.13547196]
[1693565188377,0.743186,25994.0,25993.0,0.94313429]
[1693565192380,0.743186,25994.0,25993.0,0.68851445]
[1693565192582,0.743186,25994.0,25993.0,0.94311899]
[1693565194884,0.743186,25994.0,25993.0,1.13546415]
[1693565197281,0.743186,25994.0,25993.0,0.94311899]
[1693565202188,0.68545265,25994.0,25993.0,0.94311899]
[1693565206990,0.743186,25994.0,25993.0,1.35841899]
[1693565211586,0.59888,25994.0,25993.0,1.35841899]
[1693565212189,0.4153,25997.0,25993.0,1.35841899]
[1693565212392,0.14428,25999.0,25993.0,1.35841899]
[1693565212393,0.1512,25999.0,25996.0,0.4153]
[1693565212580,0.559574,26000.0,25998.0,0.56921585]
[1693565212782,0.559574,26000.0,25999.0,1.25665671]
[1693565212991,0.559574,26000.0,25999.0,1.51217316]
[1693565213194,0.44649696,26000.0,25999.0,1.51208657]
[1693565213492,0.59077096,26000.0,25999.0,1.51208657]
[1693565214994,0.60877096,26000.0,25999.0,1.51208657]
[1693565215194,0.60877096,26000.0,25999.0,1.25748203]
[1693565215395,0.62377096,26000.0,25999.0,1.25848203]
[1693565215597,0.76377096,26000.0,25999.0,1.25848203]
[1693565215788,0.76577096,26000.0,25999.0,1.26148203]
[1693565215991,0.75277096,26000.0,25999.0,1.26748203]
[1693565216295,0.60849696,26000.0,25999.0,1.11365345]
[1693565217003,0.19319696,26000.0,25999.0,1.11365345]
[1693565217697,0.33747096,26000.0,25999.0,1.11365345]
[1693565218091,0.19319696,26000.0,25999.0,1.11365345]
[1693565221194,0.162,26000.0,25999.0,1.11365345]
[1693565221400,0.5805,26002.0,25999.0,1.11365345]
[1693565221597,0.5805,26002.0,26001.0,1.06920925]
[1693565221999,0.4153,26002.0,26001.0,1.22620925]
[1693565222201,0.44533022,26002.0,26001.0,1.3374467]
[1693565222595,0.44933022,26002.0,26001.0,1.3374467]
[1693565224409,0.04603022,26002.0,26001.0,1.3384467]
[1693565225305,0.04403022,26002.0,26001.0,1.3384467]
[1693565225500,0.06026018,26009.0,26001.0,2.09316332]
[1693565225691,0.487775,26009.0,26008.0,0.4153]
[1693565225896,0.168075,26009.0,26008.0,1.10345745]
[1693565226390,0.305075,26009.0,26008.0,1.10345745]
[1693565226703,0.339075,26009.0,26008.0,1.10345745]
[1693565226900,0.339075,26009.0,26008.0,1.18024087]
[1693565227105,0.898599,26009.0,26008.0,1.18024087]
[1693565227604,0.888599,26009.0,26008.0,1.20424087]
[1693565227798,0.892599,26009.0,26008.0,1.22812911]
[1693565228706,0.888599,26009.0,26008.0,1.20412911]
[1693565228904,0.892599,26009.0,26008.0,1.15145745]
[1693565229508,0.888599,26009.0,26008.0,1.12745745]
[1693565229696,0.892599,26009.0,26008.0,1.15145745]
[1693565229897,0.892599,26009.0,26008.0,1.26663258]
[1693565230304,0.888599,26009.0,26008.0,1.24263258]
[1693565230506,0.892599,26009.0,26008.0,1.26663258]
[1693565231099,0.5803,26009.0,26008.0,1.26663258]